Cogmind - Beta 16.1 @@@ ROGUE MODE // 2026.06.20 @ 15:24:45 Player: MirenBlacksword Result: Destroyed by BE-UYI(R) with Subdweller Laser Performance ------------- Evolutions (0) 0 Regions Visited (2) 400 Robots Destroyed (28) 140 Value Destroyed (903) 903 Prototype IDs (0) 0 Alien Tech Used (0) 0 Bonus (0) 0 TOTAL SCORE: 1443 Bonus ------- None Cogmind --------- Core Integrity 0/250 Matter 6/300 Energy 125/125 System Corruption 0% Temperature Cool (6) Movement Rolling (115) Ox1 Location -10/Subcaves Parts ------- > --- POWER (1) -------- Light Ion Engine > --- PROPULSION (2) --- Spiked Treads Compact Wheel > --- UTILITY (2) ------ Medium Storage Unit > --- WEAPON (2) ------- Rocket Launcher > --- INVENTORY (10) --- Subdweller Power Source Large Matter Pod (150) Beam Rifle Beam Rifle Particle Gun Subdweller Machine Gun Rocket Launcher Scrap Shield Fragment (37) Peak State ------------ > --- POWER ------------ Subdweller Power Source > --- PROPULSION ------- Light Treads Spiked Treads > --- UTILITY ---------- Medium Storage Unit Light Armor Plating > --- WEAPON ----------- Rocket Launcher Rocket Launcher > --- INVENTORY -------- Light Ion Engine Compact Wheel Large Matter Pod Beam Rifle Beam Rifle Particle Gun Subdweller Machine Gun Rocket Launcher Rocket Launcher Scrap Shield Fragment [Rating: 12] Favorites ----------- Power Light Ion Engine Engine Light Ion Engine Propulsion Light Treads Treads Light Treads Leg Aluminum Leg Wheel Compact Wheel Utility Medium Storage Unit Device Seismic Detector Storage Medium Storage Unit Protection Light Armor Plating Weapon Rocket Launcher Energy Gun Particle Gun Ballistic Gun Light Assault Rifle Launcher Rocket Launcher Build | -11 -10 -10 ------- Run | Yrd Mat Sub Slots Evolved . | . . . Power . | . . . Propulsion . | . . . Utility . | . . . Weapon . | . . . Parts Attached 19 | 4 4 11 Power 3 | . 1 2 Engine 3 | . 1 2 Core . | . . . Reactor . | . . . Propulsion 5 | 2 1 2 Treads 3 | 2 . 1 Leg . | . . . Wheel 2 | . 1 1 Hover . | . . . Flight . | . . . Utility 4 | 1 1 2 Device 2 | 1 . 1 Storage 1 | . 1 . Processor . | . . . Hackware . | . . . Protection 1 | . . 1 Artifact . | . . . Weapon 7 | 1 1 5 Energy Gun 1 | . 1 . Energy Cannon . | . . . Ballistic Gun 3 | 1 . 2 Ballistic Cannon . | . . . Launcher 3 | . . 3 Special Weapon . | . . . Impact Weapon . | . . . Slashing Weapon . | . . . Piercing Weapon . | . . . Special Melee Weapon . | . . . Unidentified Prototypes . | . . . Parts Lost 8 | . 3 5 Power 1 | . 1 . Propulsion 2 | . 1 1 Utility 2 | . . 2 Weapon 3 | . 1 2 Highest Loss Streak 4 | . 1 4 To Critical Strikes . | . . . Average Backups 7 | 4 7 8 Power 1 | 1 1 1 Propulsion 1 | 2 1 . Utility 1 | . 1 1 Weapon 4 | 1 3 5 Tool/Special . | . . . Unused Backups 11 | 4 3 4 Power . | . . . Propulsion 4 | 4 . . Utility 4 | . 3 1 Weapon 3 | . . 3 Tool/Special . | . . . Average Slot Usage (%) 93 | . 93 93 Engine 13 | . 13 14 Treads 19 | . 21 17 Wheel 5 | . . 10 Device 9 | . 14 3 Storage 14 | . 14 14 Protection 2 | . . 5 Energy Gun 4 | . 8 . Ballistic Gun 10 | . 19 . Launcher 12 | . . 27 Peak Build Rating 12 | 7 9 12 Average Rating 8 | 6 7 10 On Entrance 7 | 6 7 9 Avg Prop Armor Cover (%) 9 | . 14 8 Naked Turns . | . . . Heaviest Build 26 | 14 18 26 Greatest Support 40 | 40 40 40 Greatest Overweight (x) 1 | . 1 1 Average Overweight (x) . | . . . Largest Inventory Capacity 10 | 8 10 10 Average Capacity 9 | 8 9 10 Most Carried 10 | 6 10 10 Average Carried 8 | 4 7 9 Final Capacity 10 | 8 10 10 Final Carried 9 | 4 9 8 Class Distribution -------------------- 100% | Mutant Dominant Class ---------------- Mutant | -10/Materials Mutant | -10/Subcaves Resources | -11 -10 -10 ----------- Run | Yrd Mat Sub Matter Collected 898 | 284 375 239 Remotely . | . . . Salvage Created 878 | 135 499 244 Parts 49 | 15 19 15 Haulers Intercepted . | . . . Recyclers Shooed 1 | 1 . . Parts Field Recycled . | . . . Retrieved Matter . | . . . Parts Self-Destructed . | . . . Prevented . | . . . Parts Restored . | . . . Kills | -11 -10 -10 ------- Run | Yrd Mat Sub Combat Hostiles Destroyed 22 | . 11 11 Guns 11 | . 11 . AOE 11 | . . 11 Classes Destroyed 5 | 2 2 1 Tunneler 4 | 4 . . Recycler 1 | 1 . . Operator 1 | . 1 . Grunt 11 | . 11 . Subdweller 11 | . . 11 Best Kill Streak 3 | 3 3 2 Combat Bots Only 3 | . 3 2 Max Kills in Single Turn 2 | 1 1 2 Gunslinging . | . . . Exploded 2 | . . 2 Melee . | . . . Uniques/NPCs Destroyed . | . . . Combat | -11 -10 -10 -------- Run | Yrd Mat Sub Hostile Shots Fired 102 | . 76 26 Missed 28 | . 19 9 Hits 74 | . 57 17 Projectile 74 | . 57 17 Damage Taken 1265 | . 728 537 Core 257 | . 176 81 Absorbed by Shields . | . . . Core Remaining (%) 100 | 100 . . Volleys Fired 92 | 11 60 21 Largest 2 | 2 2 2 Hottest 85 | 40 85 66 Shots Fired 175 | 22 115 38 Gun 137 | 22 115 . Cannon . | . . . Launcher 38 | . . 38 Special . | . . . Kinetic 122 | 22 100 . Thermal 15 | . 15 . Explosive 38 | . . 38 Electromagnetic . | . . . Robot Hit Streak 13 | 13 11 6 Robot Miss Streak 4 | 1 4 2 Penetration Max . | . . . Secondary Targets 2 | . 2 . Max Gunslinging Chain 1 | . 1 . Shots Hit Robots 108 | 17 73 18 Core Hits 53 | 8 27 18 Critical Kills . | . . . Critical Parts Destroyed 1 | . 1 . Critical Strikes 2 | . 2 . Burn 1 | . 1 . Destroy 1 | . 1 . Melee Attacks . | . . . Impact . | . . . Slashing . | . . . Piercing . | . . . Sneak Attacks . | . . . Combat Hostiles . | . . . Follow-up Attacks . | . . . Damage Inflicted 2604 | 175 756 1673 Guns 931 | 175 756 . Cannons . | . . . Explosions 1673 | . . 1673 Melee . | . . . Ramming . | . . . Kinetic 772 | 175 597 . Thermal 159 | . 159 . Explosive 1673 | . . 1673 Electromagnetic . | . . . Impact . | . . . Slashing . | . . . Piercing . | . . . Highest Corruption . | . . . Average Corruption . | . . . Corruption Purged . | . . . Corruption Blocked . | . . . Overload Shots . | . . . Overflow Damage 4 | . . 4 Projectiles . | . . . Explosions 4 | . . 4 Melee . | . . . Knockbacks . | . . . Impact . | . . . Kinetic . | . . . Secondary . | . . . Self-Inflicted Damage 181 | . . 181 Shots 6 | . . 6 Rammed . | . . . Targets Rammed . | . . . Kicked . | . . . Crushed . | . . . Highest Temperature 214 | . 214 . Average Temperature 50 | . 50 . Received Heat Transfer 462 | . 405 57 Siege Activations . | . . . Martial Activations . | . . . Shielding Activations . | . . . Robots Disrupted . | . . . Combat Hostiles . | . . . Robots Corrupted . | . . . Combat Hostiles . | . . . Parts Fried . | . . . Impact Corruptions . | . . . Robots Melted . | . . . Combat Hostiles . | . . . Parts Melted . | . . . Heat Transferred 444 | . 444 . Parts Sabotaged . | . . . Parts Stolen . | . . . Parts Stripped . | . . . Power Chain Reactions . | . . . Alert | -11 -10 -10 ------- Run | Yrd Mat Sub Maximum Alert Level . | . . . Low Security (%) 100 | 100 100 . Level 1 . | . . . Level 2 . | . . . Level 3 . | . . . Level 4 . | . . . Level 5 . | . . . High Security . | . . . Max Security . | . . . Peak Influence 80 | 10 80 . Initial . | . . . Average 18 | 2 20 . Influence Increases 399 | 25 374 . Destroy 0b10 Robot/C 220 | . 220 . Destroy 0b10 Robot/NC 30 | 25 5 . Destroy Leader 50 | . 50 . Successful Hack 9 | . 9 . Select Force Hacks 30 | . 30 . Lose Combat Pursuer 60 | . 60 . Influence Decreases 399 | 25 362 12 Entered New Map 7 | . . 7 Time Decay 312 | 25 282 5 Lost Part 20 | . 20 . Purge Threat 60 | . 60 . Squads Dispatched 3 | . 3 . Investigation 2 | . 2 . Extermination . | . . . Reinforcement 1 | . 1 . Assault . | . . . Garrison . | . . . Intercept . | . . . Searches Triggered . | . . . Construction Impeded . | . . . Haulers Reinforced . | . . . Active Scanning Responses . | . . . Cargo Convoy Interrupts . | . . . Stealth | -11 -10 -10 --------- Run | Yrd Mat Sub Distress Signals 3 | . 3 . Communications Jammed . | . . . Distress Signals . | . . . Times Spotted 38 | . 27 11 Peak Tracking Total 4 | . 4 2 Tactical Retreats 3 | . 3 . Traps | -11 -10 -10 ------- Run | Yrd Mat Sub Traps Triggered 1 | . 1 . Indirectly . | . . . Trap Hack Attempts . | . . . Triggered . | . . . Disarmed . | . . . Reprogrammed . | . . . Reused . | . . . Traps Extracted . | . . . Installed . | . . . Triggered . | . . . Most Traps Carried 1 | . . 1 Machines | -11 -10 -10 ---------- Run | Yrd Mat Sub Machines Disabled . | . . . Max in Single Turn . | . . . Machines Repaired . | . . . Machines Dismantled . | . . . Machines Sabotaged . | . . . Overloaded Fab Kills . | . . . Hacking | -11 -10 -10 --------- Run | Yrd Mat Sub Machines Accessed 5 | . 5 . Terminals 4 | . 4 . Fabricators . | . . . Repair Stations . | . . . Recycling Units 1 | . 1 . Scanalyzers . | . . . Garrison Access . | . . . Total Hacks 16 | . 16 . Successful 9 | . 9 . Failed 7 | . 7 . Catastrophic . | . . . Database Lockouts . | . . . Manual 16 | . 16 . Terminals 15 | . 15 . Fabricators . | . . . Repair Stations . | . . . Recycling Units 1 | . 1 . Scanalyzers . | . . . Garrison Access . | . . . Terminal Hacks 5 | . 5 . Branch Access Points 1 | . 1 . Unreport Threat 2 | . 2 . Recall Investigation 1 | . 1 . Hauler Manifests 1 | . 1 . Fabricator Hacks . | . . . Repair Station Hacks . | . . . Recycling Unit Hacks . | . . . Scanalyzer . | . . . Garrison Access Hacks . | . . . Unauthorized Hacks 4 | . 4 . Terminals 3 | . 3 . Botnet 2 | . 2 . Operators 1 | . 1 . Fabricators . | . . . Repair Stations . | . . . Recycling Units 1 | . 1 . Tunnel 1 | . 1 . Scanalyzers . | . . . Garrison Access . | . . . Data Cores Recovered . | . . . Used . | . . . Hacking Detections 4 | . 4 . Full Trace Events . | . . . Feedback Events . | . . . Feedback Blocked . | . . . Robot Schematics Acquired . | . . . Robots Built . | . . . Authchips . | . . . Time . | . . . Total Robot Build Rating . | . . . Part Schematics Acquired . | . . . Parts Built . | . . . Authchips . | . . . Time . | . . . Total Part Build Rating . | . . . Part Studies Acquired . | . . . Parts Repaired . | . . . Time . | . . . Parts Recycled . | . . . Recycled Matter . | . . . Retrieved Matter . | . . . Retrieved Components . | . . . Parts Scanalyzed . | . . . Part Schematics Acquired . | . . . Parts Damaged . | . . . Bothacking | -11 -10 -10 ------------ Run | Yrd Mat Sub Used RIF Installer . | . . . Robots Hacked . | . . . Non-combat . | . . . Combat . | . . . Robot Hacks Applied . | . . . Relay Couplers Released . | . . . Fabnet Peak Effective % . | . . . Robots Rewired . | . . . Allies Hacked . | . . . Hacks Repelled . | . . . Allies | -11 -10 -10 -------- Run | Yrd Mat Sub Total Allies . | . . . Largest Group . | . . . Highest-Rated Group . | . . . Highest-Rated Ally . | . . . Total Orders . | . . . Ally Attacks . | . . . Total Damage . | . . . Kills . | . . . Allies Corrupted . | . . . Allies Melted . | . . . Intel | -11 -10 -10 ------- Run | Yrd Mat Sub Active Infowar (turns) 1203 | 27 1003 173 Optics 1 | . . 1 Seismic 1202 | 27 1003 172 Robot Analysis Total . | . . . Derelict Logs Recovered 2 | . . 2 Drone Launches . | . . . Drone Recoveries . | . . . Exploration | -11 -10 -10 ------------- Run | Yrd Mat Sub Turns Passed 1934 | 112 1003 819 Spaces Moved 987 | 43 485 459 Core . | . . . Treads 697 | 43 439 215 Legs . | . . . Wheels 290 | . 46 244 Hover . | . . . Flight . | . . . Fastest Speed 115 | 160 115 115 Average Speed 154 | 160 155 152 Slowest Speed 240 | 160 160 240 Overloaded Moves . | . . . Propulsion Burnouts . | . . . Robots Hopped . | . . . Potential Cave-ins . | . . . Cave-ins Triggered . | . . . Exploration Rate (%) 31 | 4 59 31 Regions Visited 2 Branch Regions 1 Pre-discovered Areas 2 | . 1 1 Known Exits Taken . | . . . Unknown Exits Taken 2 | 1 1 . Scrap Searched 2 | . . 2 Spaces Dug . | . . . Terrain Destroyed 209 | . . 209 Melee . | . . . Projectile . | . . . AOE 209 | . . 209 Terrain Rammed . | . . . Walls Destroyed . | . . . Machines Disabled . | . . . Actions | -11 -10 -10 --------- Run | Yrd Mat Sub Total 1237 | 67 630 540 Wait 109 | 7 66 36 Move 985 | 42 484 459 Hop . | . . . Pick Up 13 | . 9 4 Fast Attach 6 | 1 2 3 Attach 6 | 1 3 2 Detach 2 | 1 1 . Swap 12 | 2 1 9 Drop 12 | 2 4 6 Fire 92 | 11 60 21 Melee . | . . . Ram . | . . . Kick . | . . . Crush . | . . . Escape Stasis . | . . . Rewire . | . . . Trap . | . . . Miscellaneous . | . . . Route ------- -11/Scrapyard -10/Materials (discovered 2 exits: *Min / [*Sub]) -10/Subcaves (discovered 1 exit: *Mat) History --------- Turn | Location | Event 11 | -11/Scrapyard | Discovered new exit (range 3) 113 | -11/Scrapyard | Entered Materials 269 | -10/Materials | Identified exit to Mines 317 | -10/Materials | Build established: Mutant 489 | -10/Materials | Core integrity fell below 50% 838 | -10/Materials | Discovered new exit (range 7) 1116 | -10/Materials | Entered Subcaves 1117 | -10/Subcaves | Approached by a straggling Scientist 1125 | -10/Subcaves | Identified exit to Materials 1412 | -10/Subcaves | Core integrity fell below 20% 1590 | -10/Subcaves | Shifting Twisted Machinery released Sub. Machine Gun 1595 | -10/Subcaves | Shifting Twisted Machinery released Sub. Power Source 1909 | -10/Subcaves | Learned location of Zion (-7) 1934 | -10/Subcaves | Disturbed a concealed Subdweller 1935 | -10/Subcaves | Destroyed by BE-UYI(R) with Subdweller Laser Last Messages --------------- 01886_ Sub. Power Source shoots sparks and powers down. 01887_ Rocket Launcher destroyed. 01889_ M0-47Z(R) destroyed. 01892_ 6N-U2H(R) destroyed. 01892_ Lgt. Treads destroyed. 01892_ Destroyed Lgt. Treads. 01892_ Lgt. Armor Plating destroyed. 01892_ Destroyed Lgt. Armor Plating. 01901_ Acquired 22 matter. 01903_ Acquired 8 matter. 01909_ Acquired derelict log, extracted data. World map updated: -7/Zion. 01918_ R2-BVY(R) destroyed. 01922_ Rocket Launcher destroyed. 01928_ The unstable cave ceiling collapses. 01934_ BE-UYI(R) angrily emerges from the Twisted Machinery. 01934_ 8L-URH(R) affixes Scrap Shield Fragment to Scrap Shield. Map ----- +----------------------------------------------------+ | ??????????????????????????????????????????????? | | ??????????????????????????????????????????????? | | ??????????????????????????????????????????????? | | ??????????????????????????????????????????????? | | ??????????????????????????????????????????????? | | ??????????????????????????????????????????????? | | ??????????????????????????????????????????????? | | ??????????????????????????????????????????????? | | ??????????????????????????????????????????????? | | ??????????????????????????????????????????????? | | ??????????????????????????????????????????????? | | ??????????????????????????????????????????????? | | ??????????????????????????????????????????????? | | ??????????????????????????????????????????????? | | ??????????????????????????????????????????????? | | ??????????????????????????????????????????????? | | ??????????????????????#####???????????????????? | | ?????????????????????#""# ???????????????????? | | ???????????????"""??"""" #####???????????????? | | ???????????????"""""" "" # <<#?#?????????????? | | ???????????????#""""" #&<&# #?????????????? | | ???????????????#"" ""# < <# #?????????????? | | ?????????????????" "# % R<## ##????????????? | | ??????????????????# R ## #????????????? | | ??????????????????# ##????????????? | | ??????????????????# @ #??####??????? | | ??????????????????# # # #?# ##?????? | | ??????????????????# ## ????? | | ??????????????????# ## ????? | | ??????????????????# # ???? | | ??????????????????### ?????? | | ????????????????????# ### ?????????? | | ????????????????????#"""" " ##????????????? | | ????????????????????# ## [ #####?????????? | | ???????????????????### *!& #?????????? | | ???????????????? "" """ & #?????????? | | ????????????????# "" " " #?????????? | | ????????????????##"" ##" ##?????????? | | ?????????????????##" ### " #??????????? | | ??????????????????##### " ##??????????? | | ??????????????????## """ ##???????????? | | ??????????????????# """ " #????????????? | | ????????????????### #### "" #????????????? | | ???????????????##" ##?? " #????????????? | | ???????????????#"" " #??? ## #????????????? | | ???????????????#" " #??## ""?##????????????? | | ???????????????### " ###???#" ##??????????????? | | ????????????????## ##?????? ????????????????? | | ????????????????# ##??????? ????????????????? | | ????????????????## #????????????????????????? | +----------------------------------------------------+ Best States ------------- Heat Dissipation 25 Energy Generation 15 Energy Capacity 250 Matter Stores 300 Matter Capacity 300 Sight Range 16 Terrain Scan Density 10 Armor Coverage 150 Evasion (%) 40 Recoil Reduction 2 Item Schematics ----------------- None Robot Schematics ------------------ None Fabricated ------------ Nothing Repaired ---------- Nothing Studied --------- None Alien Tech Used ----------------- None Achievements -------------- None Challenges ------------ None Game ------ Seed GatlingPhasingNeutralizer Manual? 0 Play Time 00:25:19 Cumulative 43.2 hours Start 2026.06.20 @ 14:48:16 End 2026.06.20 @ 15:24:45 Sessions 1 Manual Loads 0 Difficulty Rogue Special Mode None Game No. 44 Rogue 39 Adventurer 5 Explorer 0 Win Type - Total 1 Types 1/0/0/0/0/0/0/0/0/0 Lore% 29 Gallery% 30 Achievement% 27 Wizard Run 0 Options --------- Layout 1 ASCII 0 Keyboard 1 Movement Numpad Keybinds 0 Fullscreen 1 Font 24/Smallcaps Map View 50x35 Zoom Use 0% Tactical HUD 1 Map Filters NONE Filters NONE Steam 1 RUN: a3c6ae75-4467-407f-ac57-da58b0c0d59e